Cogmind - Beta 14 @@@ ROGUE MODE // 2024.08.19 @ 14:51:36 Player: Xplodonator Result: Self-destructed Performance ------------- Evolutions (2) 1000 Regions Visited (3) 600 Robots Destroyed (41) 205 Value Destroyed (953) 953 Prototype IDs (1) 20 Alien Tech Used (0) 0 Bonus (0) 0 TOTAL SCORE: 2778 Bonus ------- None Cogmind --------- Core Integrity 404/550 Matter 184/300 Energy 100/100 System Corruption 0% Temperature Cool (56) Movement Core (350) Ox6 Location -8/Materials Parts ------- > --- POWER (1) -------- (None) > --- PROPULSION (4) --- (None) > --- UTILITY (4) ------ Large Storage Unit Visual Processing Unit Signal Interpreter Improved Terrain Scanner > --- WEAPON (2) ------- (None) > --- INVENTORY (15) --- Light Nuclear Core Flight Unit Flight Unit VTOL Module High-capacity Storage Unit Signal Interpreter Enhanced Autogun Datajack Datajack Peak State ------------ > --- POWER ------------ Improved Ion Engine > --- PROPULSION ------- Improved Hover Unit Improved Hover Unit Improved Hover Unit Improved Hover Unit > --- UTILITY ---------- Large Storage Unit Visual Processing Unit Improved Terrain Scanner Seismic Detector > --- WEAPON ----------- Improved Assault Rifle High-powered Shotgun > --- INVENTORY -------- Light Nuclear Core Flight Unit Flight Unit VTOL Module High-capacity Storage Unit Signal Interpreter Signal Interpreter Autogun Improved Assault Rifle Datajack Datajack [Rating: 24] Favorites ----------- Power Improved Ion Engine Engine Improved Ion Engine Propulsion Compact Wheel Wheel Compact Wheel Hover Unit Improved Hover Unit Flight Unit Flight Unit Utility Large Storage Unit Device Seismic Detector Storage Large Storage Unit Processor Visual Processing Unit Weapon Light Assault Rifle Energy Gun Small Laser Ballistic Gun Light Assault Rifle Build | -11 -10 -9 -8 ------- Run | Yrd Mat Mat Mat Slots Evolved 4 | . . 2 2 Power . | . . . . Propulsion 2 | . . 1 1 Utility 2 | . . 1 1 Weapon . | . . . . Parts Attached 48 | 8 13 12 15 Power 3 | 1 1 1 . Engine 3 | 1 1 1 . Core . | . . . . Reactor . | . . . . Propulsion 29 | 3 10 6 10 Treads . | . . . . Leg . | . . . . Wheel 17 | 3 8 3 3 Hover 9 | . 2 3 4 Flight 3 | . . . 3 Utility 8 | 2 1 3 2 Device 4 | 1 . 2 1 Storage 2 | 1 1 . . Processor 2 | . . 1 1 Hackware . | . . . . Protection . | . . . . Artifact . | . . . . Weapon 8 | 2 1 2 3 Energy Gun 1 | 1 . . . Energy Cannon . | . . . . Ballistic Gun 7 | 1 1 2 3 Ballistic Cannon . | . . . . Launcher . | . . . . Special Weapon . | . . . . Impact Weapon . | . . . . Slashing Weapon . | . . . . Piercing Weapon . | . . . . Special Melee Weapon . | . . . . Unidentified Prototypes 1 | . . 1 . Parts Lost 16 | . 3 1 12 Power 1 | . . . 1 Propulsion 9 | . 2 . 7 Utility 2 | . 1 . 1 Weapon 4 | . . 1 3 Highest Loss Streak 5 | . 1 1 5 To Critical Strikes . | . . . . Average Slot Usage (%) 91 | . 90 99 83 Engine 12 | . 13 11 9 Wheel 25 | . 27 32 9 Hover 1 | . . . 8 Device 8 | . 5 11 11 Storage 12 | . 14 11 9 Processor 4 | . . 9 12 Energy Gun 3 | . 6 . . Ballistic Gun 20 | . 21 21 17 Peak Build Rating 24 | 7 10 16 24 Average Rating 11 | 4 7 14 19 On Entrance 8 | . 7 9 16 Naked Turns . | . . . . Heaviest Build 35 | 13 29 34 35 Greatest Support 48 | 26 32 48 48 Greatest Overweight (x) 11 | 1 2 . 11 Average Overweight (x) . | . . . 1 Largest Inventory Capacity 15 | 8 15 15 15 Average Capacity 13 | 7 12 15 15 Most Carried 15 | 6 15 15 15 Average Carried 9 | 3 9 12 9 Final Capacity 15 | 8 15 15 15 Final Carried 15 | 5 12 15 9 Class Distribution -------------------- 100% | Mutant Dominant Class ---------------- Mutant | -10/Materials Mutant | -9/Materials Mutant | -8/Materials Resources | -11 -10 -9 -8 ----------- Run | Yrd Mat Mat Mat Matter Collected 1131 | 224 346 291 270 Remotely . | . . . . Salvage Created 1383 | 122 471 422 368 Parts 99 | 10 34 29 26 Haulers Intercepted 5 | . 2 1 2 Recyclers Shooed 2 | 1 . . 1 Parts Field Recycled . | . . . . Retrieved Matter . | . . . . Parts Self-Destructed . | . . . . Prevented . | . . . . Kills | -11 -10 -9 -8 ------- Run | Yrd Mat Mat Mat Combat Hostiles Destroyed 24 | . 8 9 7 Guns 24 | . 8 9 7 Classes Destroyed 9 | 2 3 3 1 Worker 1 | . . . 1 Tunneler 4 | 3 1 . . Hauler 5 | . 2 1 2 Recycler 1 | 1 . . . Watcher 6 | . 1 2 3 Swarmer 6 | . . 3 3 Grunt 14 | . 8 3 3 Brawler 1 | . . 1 . Sentry 3 | . . 2 1 Best Kill Streak 9 | 4 3 4 9 Combat Bots Only 3 | . 3 3 3 Max Kills in Single Turn 2 | 2 1 1 1 Gunslinging . | . . . . Exploded . | . . . . Melee . | . . . . Uniques/NPCs Destroyed . | . . . . Combat | -11 -10 -9 -8 -------- Run | Yrd Mat Mat Mat Hostile Shots Fired 172 | . 56 37 79 Missed 41 | . 14 7 20 Damage Taken 1696 | . 508 330 858 Core 367 | . 146 75 146 Absorbed by Shields . | . . . . Core Remaining (%) 74 | 100 41 81 . Volleys Fired 168 | 8 90 31 39 Largest 2 | 2 2 2 2 Hottest 60 | 60 60 46 50 Shots Fired 329 | 16 180 59 74 Gun 329 | 16 180 59 74 Cannon . | . . . . Launcher . | . . . . Special . | . . . . Kinetic 308 | 8 167 59 74 Thermal 21 | 8 13 . . Explosive . | . . . . Electromagnetic . | . . . . Robot Hit Streak 11 | 9 10 5 11 Robot Miss Streak 9 | 1 9 3 7 Penetration Max . | . . . . Secondary Targets 3 | . 1 . 2 Max Gunslinging Chain 1 | . 1 . 1 Shots Hit Robots 183 | 13 85 34 51 Core Hits 79 | 6 32 15 26 Critical Kills 1 | . . . 1 Critical Parts Destroyed 1 | . . . 1 Critical Strikes 2 | . . . 2 Destroy 2 | . . . 2 Melee Attacks . | . . . . Impact . | . . . . Slashing . | . . . . Piercing . | . . . . Sneak Attacks . | . . . . Combat Hostiles . | . . . . Follow-up Attacks . | . . . . Damage Inflicted 2373 | 132 748 459 1034 Guns 2373 | 132 748 459 1034 Cannons . | . . . . Explosions . | . . . . Melee . | . . . . Ramming . | . . . . Kinetic 2223 | 58 672 459 1034 Thermal 150 | 74 76 . . Explosive . | . . . . Electromagnetic . | . . . . Impact . | . . . . Slashing . | . . . . Piercing . | . . . . Highest Corruption . | . . . . Average Corruption . | . . . . Corruption Purged . | . . . . Corruption Blocked . | . . . . Overload Shots . | . . . . Overflow Damage . | . . . . Projectiles . | . . . . Explosions . | . . . . Melee . | . . . . Knockbacks . | . . . . Impact . | . . . . Kinetic . | . . . . Secondary . | . . . . Self-Inflicted Damage . | . . . . Shots . | . . . . Rammed . | . . . . Targets Rammed . | . . . . Kicked . | . . . . Crushed . | . . . . Highest Temperature 121 | 40 121 26 81 Average Temperature 18 | 24 15 4 42 Received Heat Transfer 852 | . 303 90 459 Siege Activations . | . . . . Robots Corrupted . | . . . . Combat Hostiles . | . . . . Parts Fried . | . . . . Impact Corruptions . | . . . . Robots Melted . | . . . . Combat Hostiles . | . . . . Parts Melted . | . . . . Heat Transferred 350 | 175 175 . . Parts Sabotaged . | . . . . Parts Stolen . | . . . . Parts Stripped . | . . . . Power Chain Reactions . | . . . . Alert | -11 -10 -9 -8 ------- Run | Yrd Mat Mat Mat Peak Influence 351 | 20 149 351 281 Initial 148 | . 13 61 148 Average 93 | 7 51 137 173 Maximum Alert Level 1 | . . 1 1 Low Security (%) 91 | 100 100 76 85 Level 1 8 | . . 23 14 Level 2 . | . . . . Level 3 . | . . . . Level 4 . | . . . . Level 5 . | . . . . High Security . | . . . . Max Security . | . . . . Squads Dispatched 4 | . 3 1 . Investigation 2 | . 1 1 . Extermination . | . . . . Reinforcement 2 | . 2 . . Assault . | . . . . Garrison . | . . . . Intercept . | . . . . Searches Triggered . | . . . . Construction Impeded . | . . . . Haulers Reinforced . | . . . . Active Scanning Responses . | . . . . Cargo Convoy Interrupts . | . . . . Stealth | -11 -10 -9 -8 --------- Run | Yrd Mat Mat Mat Distress Signals 5 | . . 3 2 Communications Jammed . | . . . . Distress Signals . | . . . . Times Spotted 65 | . 27 25 13 Peak Tracking Total 6 | . 3 6 4 Tactical Retreats 7 | . 2 5 . Traps | -11 -10 -9 -8 ------- Run | Yrd Mat Mat Mat Traps Triggered 1 | . . 1 . Indirectly . | . . . . Trap Hack Attempts . | . . . . Triggered . | . . . . Disarmed . | . . . . Reprogrammed . | . . . . Reused . | . . . . Traps Extracted . | . . . . Installed . | . . . . Triggered . | . . . . Machines | -11 -10 -9 -8 ---------- Run | Yrd Mat Mat Mat Machines Disabled 1 | . . 1 . Max in Single Turn 1 | . . 1 . Machines Repaired . | . . . . Machines Dismantled . | . . . . Machines Sabotaged . | . . . . Overloaded Fab Kills . | . . . . Hacking | -11 -10 -9 -8 --------- Run | Yrd Mat Mat Mat Machines Accessed 5 | . 2 1 2 Terminals 5 | . 2 1 2 Fabricators . | . . . . Repair Stations . | . . . . Recycling Units . | . . . . Scanalyzers . | . . . . Garrison Access . | . . . . Total Hacks 12 | . 6 2 4 Successful 9 | . 5 1 3 Failed 3 | . 1 1 1 Catastrophic . | . . . . Database Lockouts . | . . . . Manual 1 | . 1 . . Terminals 12 | . 6 2 4 Fabricators . | . . . . Repair Stations . | . . . . Recycling Units . | . . . . Scanalyzers . | . . . . Garrison Access . | . . . . Terminal Hacks 9 | . 5 1 3 Record 7 | . 5 1 1 Emergency Access Points 2 | . . . 2 Fabricator Hacks . | . . . . Repair Station Hacks . | . . . . Recycling Unit Hacks . | . . . . Scanalyzer . | . . . . Garrison Access Hacks . | . . . . Unauthorized Hacks . | . . . . Terminals . | . . . . Fabricators . | . . . . Repair Stations . | . . . . Recycling Units . | . . . . Scanalyzers . | . . . . Garrison Access . | . . . . Data Cores Recovered . | . . . . Used . | . . . . Hacking Detections 5 | . 2 1 2 Full Trace Events 2 | . 2 . . Feedback Events . | . . . . Feedback Blocked . | . . . . Robot Schematics Acquired . | . . . . Robots Built . | . . . . Authchips . | . . . . Time . | . . . . Total Robot Build Rating . | . . . . Part Schematics Acquired . | . . . . Parts Built . | . . . . Authchips . | . . . . Time . | . . . . Total Part Build Rating . | . . . . Parts Repaired . | . . . . Time . | . . . . Parts Recycled . | . . . . Recycled Matter . | . . . . Retrieved Matter . | . . . . Retrieved Components . | . . . . Parts Scanalyzed . | . . . . Part Schematics Acquired . | . . . . Parts Damaged . | . . . . Bothacking | -11 -10 -9 -8 ------------ Run | Yrd Mat Mat Mat Used RIF Installer . | . . . . Robots Hacked . | . . . . Non-combat . | . . . . Combat . | . . . . Robot Hacks Applied . | . . . . Relay Couplers Released . | . . . . Fabnet Peak Effective % . | . . . . Robots Rewired . | . . . . Allies Hacked . | . . . . Hacks Repelled . | . . . . Allies | -11 -10 -9 -8 -------- Run | Yrd Mat Mat Mat Total Allies . | . . . . Largest Group . | . . . . Highest-Rated Group . | . . . . Highest-Rated Ally . | . . . . Total Orders . | . . . . Ally Attacks . | . . . . Total Damage . | . . . . Kills . | . . . . Allies Corrupted . | . . . . Allies Melted . | . . . . Intel | -11 -10 -9 -8 ------- Run | Yrd Mat Mat Mat Robot Analysis Total . | . . . . Derelict Logs Recovered . | . . . . Drone Launches . | . . . . Drone Recoveries . | . . . . Exploration | -11 -10 -9 -8 ------------- Run | Yrd Mat Mat Mat Turns Passed 2606 | 83 1391 704 428 Spaces Moved 1424 | 48 705 501 170 Core 10 | 9 . . 1 Treads . | . . . . Legs . | . . . . Wheels 1299 | 39 703 501 56 Hover 70 | . 2 . 68 Flight 45 | . . . 45 Fastest Speed 50 | 50 80 100 100 Average Speed 101 | 84 96 100 131 Slowest Speed 600 | 100 176 100 600 Overloaded Moves . | . . . . Propulsion Burnouts . | . . . . Robots Hopped . | . . . . Cave-ins Triggered . | . . . . Exploration Rate (%) 29 | 4 67 31 15 Regions Visited 3 Branch Regions . Pre-discovered Areas . | . . . . Known Exits Taken . | . . . . Unknown Exits Taken 3 | 1 1 1 . Scrap Searched . | . . . . Spaces Dug . | . . . . Terrain Destroyed . | . . . . Melee . | . . . . Projectile . | . . . . AOE . | . . . . Terrain Rammed . | . . . . Walls Destroyed . | . . . . Machines Disabled . | . . . . Actions | -11 -10 -9 -8 --------- Run | Yrd Mat Mat Mat Total 2314 | 75 1273 660 306 Wait 591 | . 434 90 67 Move 1421 | 47 704 500 170 Hop . | . . . . Pick Up 49 | 12 17 14 6 Fast Attach . | . . . . Attach 46 | 7 12 12 15 Detach 16 | . 6 6 4 Swap 2 | 1 1 . . Drop 21 | . 9 7 5 Fire 168 | 8 90 31 39 Melee . | . . . . Ram . | . . . . Kick . | . . . . Crush . | . . . . Escape Stasis . | . . . . Rewire . | . . . . Trap . | . . . . Miscellaneous . | . . . . Route ------- -11/Scrapyard -10/Materials (discovered 2 exits: *Mat / [*Min]) -9/Materials -8/Materials History --------- Turn | Location | Event 16 | -11/Scrapyard | Discovered new exit (range 16) 84 | -11/Scrapyard | Entered Materials 307 | -10/Materials | Build established: Mutant 833 | -10/Materials | Discovered new exit (range 8) 888 | -10/Materials | Discovered new exit (range 6) 1361 | -10/Materials | Core integrity fell below 50% 1475 | -10/Materials | Entered another Materials area 1475 | -9/Materials | Evolved 2 slots: Propulsion x1, Utility x1 2174 | -9/Materials | Discovered new exit (range 6) 2179 | -9/Materials | Entered another Materials area 2179 | -8/Materials | Evolved 2 slots: Propulsion x1, Utility x1 2335 | -8/Materials | Lost 5 parts (4n1u) 2607 | -8/Materials | Self-destructed Last Messages --------------- 02585_ K-01 Serf collects debris. 02586_ W-25 Informer suffers critical hit (Destroy). 02586_ W-25 Informer destroyed. 02588_ K-01 Serf collects debris. 02591_ Critical hit (Burn: +37). 02594_ Com. Wheel destroyed. 02594_ A-02 Transporter destroyed. 02594_ K-01 Serf collects debris. 02597_ W-25 Informer destroyed. 02597_ K-01 Serf collects debris. 02598_ Acquired 25 matter. 02600_ Critical hit (Burn: +37). 02601_ K-01 Serf collects debris. 02603_ Autogun destroyed. 02603_ Critical hit (Burn: +37). 02604_ K-01 Serf collects debris. 02606_ Critical hit (Burn: +37). 02606_ Imp. Ion Engine destroyed. 02607_ Hpw. Shotgun destroyed. Map ----- +----------------------------------------------------+ | ??????????????????????????????????????????????? | | #????#?#??????????????????????????????????????? | | ??#????????#??????????????????????????????????? | | ??????????#???????????????????????????????????? | | ????#?????????????????????????????????????????? | | ??????#######?????????????????????????????????? | | ?????##!!!!##?#??????????#????????????????????? | | ?#???#!%! !#???#??#???##?????????????????????? | | ?????# = #??#????#?????????????????????????? | | ?#???### % #######?????#?????????????????????? | | ????#?## ##??????????????????????????? | | ????#### #???????????????????????????? | | #??## #????????#??????????????????? | | ????# ### ##?#??#?????????????????????? | | ????# #?# """! #??? ?????? ????????????????? | | #####+### """ #???"????#????#?????????????? | | # ## ^ """ #??????= #?? ???????????????? | | # [ ## ^ # ?"? #??????????????????? | | # ## #?? ##??????#??????????? | | # ## # !! #?????????????????? | | # ## ^!! += !! #? ? ??????????????? | | # ## !! #! ! #?????????##???????? | | # ## !! # %#? ???!! ???????? | | # ## ^ !########### [!! k ??????? | | # # !==**=!= !=g*[ Y ??????? | | # + ^ == [@* #?????????????? | | # # !*[%k= #?????????????? | | # ### ^ !###############?????????????? | | # #?# ###???????????? ????????????? | | ##+####### ""#??#????????#?????????????? | | ## #?# " T"#?#?#?????????????????????? | | ?# ### T ""#?????????????????????????? | | ?# #?# " ####???#???????#????????????? | | ?# ### #??#???#????????????????????? | | ## #?# #??#????????????????????????? | | ##+#### ##########??????????????????????????? | | # ! # #?#?#???#????????##??#??????????????? | | #[ # #???????#???????????????????????????? | | # """ + ##?###???????#??????????????????????? | | # """ # #?????##??????????#?#???????????????? | | # """ # ##########??????????????????????????? | | # """ # # #??????????????????????????? | | # # # #???##?????????????????????? | | # """ # # """ #?#????????????????????????? | | # """ # # """ ##?????????????????????????? | | # """ # + """ #??????????????????????????? | | # """ # # """ #??????????????????????????? | | # # # """ ###????????????????????????? | | ###?### # #??????????????????????????? | | ???#??##### #??????"???????????????????? | +----------------------------------------------------+ Best States ------------- Heat Dissipation 31 Energy Generation 12 Energy Capacity 265 Matter Stores 300 Matter Capacity 300 Sight Range 18 Terrain Scan Range 16 Terrain Scan Density 10 Evasion (%) 44 Item Schematics ----------------- None Robot Schematics ------------------ None Fabricated ------------ Nothing Alien Tech Used ----------------- None Achievements -------------- None Challenges ------------ None Game ------ Seed ForceHellfireLattice Manual? 0 Play Time 00:38:13 Cumulative 19.0 hours Start 2024.08.19 @ 14:08:11 End 2024.08.19 @ 14:51:36 Sessions 1 Manual Loads 0 Difficulty Rogue Special Mode None Game No. 23 Rogue 23 Adventurer 0 Explorer 0 Win Type - Total 0 Types 0/0/0/0/0/0/0/0/0 Lore% 10 Gallery% 17 Achievement% 16 Wizard Run 0 Options --------- Layout 1 ASCII 0 Keyboard 0 Movement Mouse Keybinds 0 Fullscreen 2 Font 24/Smallcaps Map View 50x35 Zoom Use 0% Tactical HUD 1 Map Filters NONE Filters NONE Steam 1 RUN: f83c317b-f293-4ea7-ad44-666b1e53fa66